fUST/lending_fUST_20251231
["ID","MTS","AMOUNT","RATE_DAILY","PERIOD"]
[400148877,1767154490449,500.0,0.0001172,2]
[400148878,1767154490485,500.0,0.0001172,2]
[400148879,1767154490533,500.0,0.0001172,2]
[400148880,1767154490605,500.0,0.0001172,2]
[400148881,1767154504877,312.23,0.0001,2]
[400148882,1767154507251,312.23,0.000102,2]
[400148883,1767154509634,312.23,0.000104,2]
[400148884,1767154512093,312.23,0.000106,2]
[400148885,1767154514390,312.23,0.000108,2]
[400148886,1767154516768,312.23,0.00011,2]
[400148887,1767154529367,500.0,0.0001172,2]
[400148888,1767154529403,500.0,0.0001172,2]
[400148889,1767154529434,500.0,0.0001172,2]
[400148890,1767154529464,500.0,0.0001172,2]
[400148891,1767154529495,500.0,0.0001172,2]
[400148892,1767154529661,500.0,0.0001172,2]
[400148893,1767154529691,500.0,0.0001172,2]
[400148894,1767154529725,500.0,0.0001172,2]
[400148895,1767154529765,500.0,0.0001172,2]
[400148896,1767154529795,500.0,0.0001172,2]
[400148897,1767154529832,500.0,0.0001172,2]
[400148898,1767154530015,500.0,0.0001172,2]
[400148899,1767154530050,500.0,0.0001172,2]
[400148900,1767154530083,500.0,0.0001172,2]
[400148901,1767154530121,500.0,0.0001172,2]
[400148902,1767154530158,396.40877559,0.0001172,2]
[400148903,1767154530186,500.0,0.0001172,2]
[400148904,1767154530261,500.0,0.0001172,2]
[400148905,1767154530335,166.91122441,0.0001172,2]
[400148906,1767154530362,333.08877559,0.0001172,2]
[400148907,1767154530394,500.0,0.0001172,2]
[400148908,1767154530429,500.0,0.0001172,2]
[400148909,1767154530481,500.0,0.0001172,2]
[400148910,1767154567907,500.0,0.0001172,2]
[400148911,1767154568207,500.0,0.0001172,2]
[400148912,1767154568532,500.0,0.0001172,2]
[400148913,1767154568860,500.0,0.0001172,2]
[400148914,1767154569172,500.0,0.0001172,2]
[400148915,1767154569487,500.0,0.0001172,2]
[400148916,1767154569819,500.0,0.0001172,2]
[400148917,1767154570130,500.0,0.0001172,2]
[400148918,1767154570429,500.0,0.0001172,2]
[400148919,1767154570809,500.0,0.0001172,2]
[400148920,1767154571116,500.0,0.0001172,2]
[400148921,1767154571411,500.0,0.0001172,2]
[400148922,1767154571685,500.0,0.0001172,2]
[400148923,1767154571718,500.0,0.0001172,2]
[400148924,1767154571749,500.0,0.0001172,2]
[400148925,1767154571790,500.0,0.0001172,2]
[400148926,1767154571825,500.0,0.0001172,2]
[400148927,1767154571856,500.0,0.0001172,2]
[400148928,1767154571904,500.0,0.0001172,2]
[400148929,1767154571935,500.0,0.0001172,2]
[400148930,1767154572015,0.01,0.0001172,2]
[400148931,1767154572040,516.61246196,0.0001172,2]
[400148932,1767154572072,500.0,0.0001172,2]
[400148933,1767154572102,500.0,0.0001172,2]
[400148934,1767154572143,500.0,0.0001172,2]
[400148935,1767154572173,500.0,0.0001172,2]
[400148936,1767154572206,500.0,0.0001172,2]
[400148937,1767154572436,500.0,0.0001172,2]
[400148938,1767154577199,500.0,0.0001172,2]
[400148939,1767154577231,500.0,0.0001172,2]
[400148940,1767154577263,500.0,0.0001172,2]
[400148941,1767154577304,421.23183517,0.0001172,2]
[400148942,1767154619755,4562.16570287,0.00011839,2]
[400148943,1767154619777,10000.01,0.00011839,2]
[400148944,1767154619800,266.18063173,0.00011839,2]
[400148945,1767154622301,300.0,0.00011838,2]
[400148946,1767154664963,155.0,0.000287,120]
[400148947,1767154671571,1009.05,0.00013,3]
[400148948,1767154695338,500.0,0.00028767,120]
[400148949,1767154731404,1000.0,0.000118,2]
[400148950,1767154775075,8433.82936827,0.00011709,2]
[400148951,1767154775098,10000.01,0.00011709,2]
[400148952,1767154775120,10000.01,0.00011709,2]
[400148953,1767154775151,10000.01,0.00011709,2]
[400148954,1767154775176,829.77247693,0.00011709,2]
[400148955,1767154820021,4009.7875708,0.00011572,2]
[400148956,1767154892585,179.0070747,0.00011732,2]
[400148957,1767154923777,-634.06844226,0.00011982,2]
[400148958,1767154925772,-207.30691018,0.00011982,2]
[400148959,1767154927856,-190.46,0.00011982,2]
[400148960,1767154929816,-168.16464756,0.00011982,2]
[400148961,1767154929838,-108.11113988,0.00011982,2]
[400148962,1767154931785,-191.88886012,0.00011982,2]
[400148963,1767154931808,-108.11113988,0.00011983,2]
[400148964,1767154933353,-300.0,0.00011983,2]
[400148966,1767154956461,291.3799864,0.00011705,2]
[400148967,1767154969469,5000.0,0.00011899,2]
[400148968,1767154977764,519.8353681,0.00011899,2]
[400148969,1767154993545,3293.55134758,0.00011893,2]
[400148970,1767155110229,222.2902244,0.00024747,120]
[400148971,1767155178525,2554.86250352,0.00013,3]
[400148973,1767155248129,-294.74960558,0.00011941,2]
[400148974,1767155248149,-589.0,0.00011983,2]
[400148975,1767155248169,-300.0,0.00012326,2]
[400148976,1767155248188,-300.0,0.00012326,2]
[400148977,1767155248209,-500.0,0.00012327,2]
[400148978,1767155248230,-500.0,0.00012327,2]
[400148979,1767155248252,-500.0,0.00012327,2]
[400148980,1767155248272,-500.0,0.00012327,2]
[400148981,1767155248295,-107.09712312,0.00012327,2]
[400148985,1767155318649,7003.52654964,0.0001,2]
[400148986,1767155319190,2917.19723262,0.0001,2]
[400148987,1767155321938,200.0,8e-05,7]
[400148988,1767155348758,500.0,0.00028767,120]
[400149016,1767155432308,-365.43016535,0.00012202,2]
[400149161,1767155438279,-834.56983465,0.00012202,2]
[400149162,1767155438289,-5000.0,0.00012203,2]
[400149163,1767155438298,-592.0,0.00012203,2]
[400149164,1767155438308,-1200.0,0.00012326,2]
[400149165,1767155438317,-288.85461347,0.00012326,2]
[400149166,1767155438327,-5916.49320237,0.00012327,2]
[400149167,1767155438339,-44083.50679763,0.00012327,2]
[400149168,1767155438348,-281.41,0.00012329,2]
[400149169,1767155438357,-742.92,0.00012329,2]
[400149170,1767155438367,-234.5,0.00012329,2]
[400149171,1767155438376,-195.42,0.00012329,2]
[400149172,1767155438386,-162.85,0.00012329,2]
[400149173,1767155438395,-511.44835911,0.00012758,2]
[400149174,1767155438404,-300.0,0.00012875,2]
[400149175,1767155438414,-300.0,0.00012875,2]
[400149176,1767155438424,-300.0,0.00012875,2]
[400149177,1767155438434,-300.0,0.00012875,2]
[400149178,1767155438443,-300.0,0.00012875,2]
[400149179,1767155438452,-300.0,0.00012875,2]
[400149180,1767155438462,-300.0,0.00012875,2]
[400149181,1767155438471,-300.0,0.00012875,2]
[400149182,1767155438481,-300.0,0.00012875,2]
[400149183,1767155438490,-300.0,0.00012875,2]
[400149184,1767155438499,-300.0,0.00012875,2]
[400149185,1767155438509,-300.0,0.00012875,2]
[400149186,1767155438518,-300.0,0.00012875,2]
[400149187,1767155438527,-300.0,0.00012875,2]
[400149188,1767155438536,-300.0,0.00012875,2]
[400149189,1767155438545,-854.92,0.00012931,2]
[400149190,1767155438555,-305.7640957,0.00013103,2]
[400149191,1767155438565,-500.0,0.00013171,2]
[400149192,1767155438574,-216.71722173,0.00013171,2]
[400149193,1767155438583,-500.0,0.00013171,2]
[400149194,1767155438593,-304.36863139,0.00013171,2]
[400149195,1767155438603,-13323.557702,0.00013172,2]
[400149196,1767155438623,-181676.642298,0.00013172,2]
[400149197,1767155438632,-600.0,0.00013197,2]
[400149198,1767155438643,-500.0,0.00013273,2]
[400149199,1767155438652,-478.35295088,0.00013273,2]
[400149200,1767155438661,-500.0,0.00013273,2]
[400149201,1767155438671,-500.0,0.00013273,2]
[400149202,1767155438680,-500.0,0.00013273,2]
[400149203,1767155438691,-500.0,0.00013273,2]
[400149204,1767155438700,-500.0,0.00013273,2]
[400149205,1767155438710,-500.0,0.00013273,2]
[400149206,1767155438719,-500.0,0.00013273,2]
[400149207,1767155438728,-500.0,0.00013273,2]
[400149208,1767155438738,-500.0,0.00013273,2]
[400149209,1767155438748,-500.0,0.00013273,2]
[400149210,1767155438757,-500.0,0.00013273,2]
[400149211,1767155438767,-561.98334321,0.00013273,2]
[400149212,1767155438777,-500.0,0.00013273,2]
[400149213,1767155438786,-500.0,0.00013273,2]
[400149214,1767155438796,-500.0,0.00013273,2]
[400149215,1767155438805,-500.0,0.00013273,2]
[400149216,1767155438815,-500.0,0.00013273,2]
[400149217,1767155438824,-500.0,0.00013273,2]
[400149218,1767155438834,-500.0,0.00013273,2]
[400149219,1767155438855,-500.0,0.00013273,2]
[400149220,1767155438865,-500.0,0.00013273,2]
[400149221,1767155438875,-500.0,0.00013273,2]
[400149222,1767155438888,-500.0,0.00013273,2]
[400149223,1767155438898,-500.0,0.00013273,2]
[400149224,1767155438909,-349.3977641,0.00013273,2]
[400149225,1767155438919,-500.0,0.00013273,2]
[400149226,1767155438930,-500.0,0.00013273,2]
[400149227,1767155438940,-500.0,0.00013273,2]
[400149228,1767155438951,-500.0,0.00013273,2]
[400149229,1767155438960,-500.0,0.00013273,2]
[400149230,1767155438971,-500.0,0.00013273,2]
[400149231,1767155438981,-500.0,0.00013273,2]
[400149232,1767155438992,-499.96763801,0.00013273,2]
[400149233,1767155439002,-500.0,0.00013273,2]
[400149234,1767155439012,-1680.0,0.00013422,2]
[400149235,1767155439022,-725.95698084,0.00013426,2]
[400149236,1767155439032,-1200.0,0.00013526,2]
[400149237,1767155439042,-10000.0,0.0001354,2]
[400149238,1767155439053,-200.0,0.00013633,3]
[400149239,1767155439063,-300.0,0.00013673,2]
[400149240,1767155439074,-596.69,0.00013698,2]
[400149241,1767155439084,-596.69,0.00013698,2]
[400149242,1767155439293,-596.69,0.00013698,2]
[400149243,1767155439303,-596.69,0.00013698,2]
[400149244,1767155439313,-596.69,0.00013698,2]
[400149245,1767155439323,-596.69,0.00013698,2]
[400149246,1767155439333,-596.69,0.00013698,2]
[400149247,1767155439343,-596.69,0.00013698,2]
[400149248,1767155439352,-596.69,0.00013698,2]
[400149249,1767155439361,-596.69,0.00013698,2]
[400149250,1767155439371,-596.69,0.00013698,2]
[400149251,1767155439381,-596.69,0.00013698,2]
[400149252,1767155439392,-596.69,0.00013698,2]
[400149253,1767155439401,-596.69,0.00013698,2]
[400149254,1767155439410,-596.69,0.00013698,2]
[400149255,1767155439420,-596.69,0.00013698,2]
[400149256,1767155439429,-15490.5579877,0.00013699,2]
[400149257,1767155439439,-3848.164235,0.00013699,2]
[400149258,1767155439449,-500.0,0.00013699,2]
[400149259,1767155439458,-500.0,0.00013699,2]
[400149260,1767155439467,-500.0,0.00013699,2]
[400149261,1767155439476,-500.0,0.00013699,2]
[400149262,1767155439486,-500.0,0.00013699,2]
[400149263,1767155439495,-500.0,0.00013699,2]
[400149264,1767155439504,-500.0,0.00013699,2]
[400149265,1767155439514,-500.0,0.00013699,2]
[400149266,1767155439524,-500.0,0.00013699,2]
[400149267,1767155439534,-500.0,0.00013699,2]
[400149268,1767155439544,-500.0,0.00013699,2]
[400149269,1767155439553,-500.0,0.00013699,2]
[400149270,1767155439562,-500.0,0.00013699,2]
[400149271,1767155439572,-500.0,0.00013699,2]
[400149272,1767155439581,-500.0,0.00013699,2]
[400149273,1767155439590,-500.0,0.00013699,2]
[400149274,1767155439600,-500.0,0.00013699,2]
[400149275,1767155439610,-500.0,0.00013699,2]
[400149276,1767155439620,-500.0,0.00013699,2]
[400149277,1767155439629,-500.0,0.00013699,2]
[400149278,1767155439639,-500.0,0.00013699,2]
[400149279,1767155439649,-500.0,0.00013699,2]
[400149280,1767155439658,-500.0,0.00013699,2]
[400149281,1767155439667,-500.0,0.00013699,2]
[400149282,1767155439676,-500.0,0.00013699,2]
[400149283,1767155439685,-500.48099046,0.00013699,2]
[400149284,1767155439694,-500.0,0.00013699,2]
[400149285,1767155439703,-500.0,0.00013699,2]
[400149286,1767155439713,-500.0,0.00013699,2]
[400149287,1767155439722,-500.0,0.00013699,2]
[400149288,1767155439731,-345.96405937,0.00013699,2]
[400149289,1767155439740,-500.0,0.00013699,2]
[400149290,1767155439749,-500.0,0.00013699,2]
[400149291,1767155439758,-495.63847364,0.00013699,2]
[400149292,1767155439767,-500.0,0.00013699,2]
[400149294,1767155439777,-500.0,0.00013699,2]
[400149295,1767155439786,-500.0,0.00013699,2]
[400149296,1767155439795,-500.0,0.00013699,2]
[400149297,1767155439803,-267.6781502,0.00013699,2]
[400149298,1767155439813,-500.0,0.00013699,2]
[400149299,1767155439822,-500.0,0.00013699,2]
[400149300,1767155439831,-500.0,0.00013699,2]
[400149301,1767155439839,-500.0,0.00013699,2]
[400149302,1767155439849,-500.0,0.00013699,2]
[400149303,1767155439858,-500.0,0.00013699,2]
[400149304,1767155439867,-500.0,0.00013699,2]
[400149305,1767155439876,-500.0,0.00013699,2]
[400149306,1767155439887,-500.0,0.00013699,2]
[400149307,1767155439896,-500.0,0.00013699,2]
[400149308,1767155439906,-500.0,0.00013699,2]
[400149309,1767155439916,-500.0,0.00013699,2]
[400149310,1767155439926,-500.0,0.00013699,2]
[400149311,1767155439936,-500.0,0.00013699,2]
[400149312,1767155439945,-500.0,0.00013699,2]
[400149313,1767155439956,-500.0,0.00013699,2]
[400149314,1767155439965,-500.0,0.00013699,2]
[400149315,1767155439974,-500.0,0.00013699,2]
[400149316,1767155439984,-500.0,0.00013699,2]
[400149317,1767155439993,-500.0,0.00013699,2]
[400149318,1767155440002,-295.43360933,0.00013699,2]
[400149319,1767155440012,-500.0,0.00013699,2]
[400149320,1767155440021,-500.0,0.00013699,2]
[400149321,1767155440030,-500.0,0.00013699,2]
[400149322,1767155440040,-540.63230604,0.00013699,2]
[400149323,1767155440049,-500.0,0.00013699,2]
[400149324,1767155440058,-500.0,0.00013699,2]
[400149325,1767155440068,-500.0,0.00013699,2]
[400149326,1767155440077,-500.0,0.00013699,2]
[400149327,1767155440087,-500.0,0.00013699,2]
[400149329,1767155440096,-596.69,0.0001382,2]
[400149330,1767155440107,-1000.0,0.00013821,2]
[400149331,1767155440116,-1000.0,0.00013821,2]
[400149332,1767155440126,-1000.0,0.00013821,2]
[400149333,1767155440135,-1000.0,0.00013821,2]
[400149334,1767155440145,-1000.0,0.00013821,2]
[400149336,1767155440154,-752.44576455,0.00013821,2]
[400149337,1767155440163,-1000.0,0.00013821,2]
[400149338,1767155440172,-1006.37696416,0.00013821,2]
[400149339,1767155440182,-1000.0,0.00013821,2]
[400149340,1767155440191,-1000.0,0.00013821,2]
[400149341,1767155440200,-1000.0,0.00013821,2]
[400149343,1767155440210,-1000.0,0.00013821,2]
[400149344,1767155440219,-1000.0,0.00013821,2]
[400149346,1767155440228,-1000.0,0.00013821,2]
[400149348,1767155440238,-1000.0,0.00013821,2]
[400149350,1767155440247,-660.40400037,0.00013821,2]
[400149352,1767155440257,-1000.0,0.00013821,2]
[400149354,1767155440266,-782.65977069,0.00013821,2]
[400149356,1767155440274,-1000.0,0.00013821,2]
[400149358,1767155440284,-1000.0,0.00013821,2]
[400149360,1767155440293,-1000.0,0.00013821,2]
[400149362,1767155440302,-1000.0,0.00013821,2]
[400149364,1767155440311,-824.83546284,0.00013821,2]
[400149366,1767155440321,-1000.0,0.00013821,2]
[400149368,1767155440331,-1000.0,0.00013821,2]
[400149370,1767155440340,-1000.0,0.00013821,2]
[400149372,1767155440349,-1000.0,0.00013821,2]
[400149374,1767155440359,-1000.0,0.00013821,2]
[400149376,1767155440368,-1003.81920107,0.00013821,2]
[400149378,1767155440377,-1000.0,0.00013821,2]
[400149379,1767155440386,-1000.0,0.00013821,2]
[400149381,1767155440395,-1000.0,0.00013821,2]
[400149383,1767155440404,-1709.84,0.00014107,2]
[400149385,1767155440415,-1264.26830173,0.00014176,2]
[400149387,1767155440424,-596.69,0.0001422,2]
[400149389,1767155440434,-600.0,0.00014221,2]
[400149391,1767155440443,-596.69,0.00014246,2]
[400149393,1767155440452,-403.04207638,0.00014247,2]
[400149395,1767155440462,-1000.0,0.00014247,2]
[400149397,1767155440471,-1000.0,0.00014247,2]
[400149399,1767155440480,-1136.69571136,0.00014247,2]
[400149401,1767155440489,-1000.0,0.00014247,2]
[400149403,1767155440498,-1000.0,0.00014247,2]
[400149405,1767155440507,-1000.0,0.00014247,2]
[400149407,1767155440517,-925.73894344,0.00014247,2]
[400149409,1767155440526,-190.10820632,0.00014247,2]
[400149411,1767155440536,-568.53710429,0.00014247,2]
[400149413,1767155440545,-1000.0,0.00014247,2]
[400149415,1767155440554,-1000.0,0.00014247,2]
[400149417,1767155440564,-1000.0,0.00014247,2]
[400149419,1767155440573,-1000.0,0.00014247,2]
[400149420,1767155440583,-1000.0,0.00014247,2]
[400149422,1767155440592,-871.80562161,0.00014247,2]
[400149424,1767155440602,-1000.0,0.00014247,2]
[400149426,1767155440611,-1000.0,0.00014247,2]
[400149428,1767155440620,-1000.0,0.00014247,2]
[400149430,1767155440629,-1000.0,0.00014247,2]
[400149432,1767155440639,-162.55448324,0.00014247,2]
[400149434,1767155440649,-1000.0,0.00014247,2]
[400149436,1767155440658,-1000.0,0.00014247,2]
[400149438,1767155440668,-1000.0,0.00014247,2]
[400149440,1767155440677,-1000.0,0.00014247,2]
[400149442,1767155440686,-1114.96936602,0.00014247,2]
[400149444,1767155440695,-1000.0,0.00014247,2]
[400149446,1767155440705,-1000.0,0.00014247,2]
[400149449,1767155440714,-1000.0,0.00014247,2]
[400149452,1767155440723,-1000.0,0.00014247,2]
[400149454,1767155440732,-1000.0,0.00014247,2]
[400149456,1767155440742,-1000.0,0.00014247,2]
[400149457,1767155440752,-1000.0,0.00014247,2]
[400149459,1767155440761,-1000.0,0.00014247,2]
[400149461,1767155440770,-454.65827101,0.00014247,2]
[400149463,1767155440779,-1000.0,0.00014247,2]
[400149465,1767155440788,-1000.0,0.00014247,2]
[400149466,1767155440797,-366.45646788,0.00014247,2]
[400149468,1767155440806,-1000.0,0.00014247,2]
[400149470,1767155440815,-1000.0,0.00014247,2]
[400149471,1767155440824,-1000.0,0.00014247,2]
[400149473,1767155440833,-439.97362328,0.00014247,2]
[400149475,1767155440842,-1000.0,0.00014247,2]
[400149477,1767155440852,-1000.0,0.00014247,2]
[400149479,1767155440860,-1000.0,0.00014247,2]
[400149481,1767155440869,-1000.0,0.00014247,2]
[400149482,1767155440878,-1000.0,0.00014247,2]
[400149484,1767155440890,-1000.0,0.00014247,2]
[400149486,1767155440899,-1000.0,0.00014247,2]
[400149488,1767155440908,-1000.0,0.00014247,2]
[400149490,1767155440917,-1000.0,0.00014247,2]
[400149492,1767155440927,-1000.0,0.00014247,2]
[400149494,1767155440936,-1000.0,0.00014247,2]
[400149495,1767155440945,-842.96834915,0.00014247,2]
[400149497,1767155440954,-1000.0,0.00014247,2]
[400149499,1767155440965,-1000.0,0.00014247,2]
[400149501,1767155440974,-1000.0,0.00014247,2]
[400149503,1767155440983,-441.53284855,0.00014247,2]
[400149505,1767155440992,-1000.0,0.00014247,2]
[400149507,1767155441001,-1000.0,0.00014247,2]
[400149509,1767155441011,-1000.0,0.00014247,2]
[400149511,1767155441019,-1000.0,0.00014247,2]
[400149512,1767155441028,-1000.0,0.00014247,2]
[400149514,1767155441038,-340.8484439,0.00014326,2]
[400149516,1767155441047,-596.69,0.00014368,2]
[400149518,1767155441056,-596.69,0.00014368,2]
[400149520,1767155441065,-1500.0,0.00014368,2]
[400149522,1767155441075,-349.32071924,0.00014368,2]
[400149524,1767155441084,-1260.55819049,0.00014368,2]
[400149526,1767155441094,-685.55855892,0.00014368,2]
[400149528,1767155441103,-1500.0,0.00014368,2]
[400149530,1767155441112,-465.35115233,0.00014368,2]
[400149532,1767155441121,-1500.0,0.00014368,2]
[400149533,1767155441132,-1500.0,0.00014368,2]
[400149535,1767155441141,-1500.0,0.00014368,2]
[400149537,1767155441150,-1500.0,0.00014368,2]
[400149539,1767155441160,-1500.0,0.00014368,2]
[400149541,1767155441169,-1035.5590815,0.00014368,2]
[400149543,1767155441178,-1500.0,0.00014368,2]
[400149545,1767155441187,-1500.0,0.00014368,2]
[400149547,1767155441196,-1500.0,0.00014368,2]
[400149549,1767155441205,-534.26412326,0.00014368,2]
[400149551,1767155441214,-1500.0,0.00014368,2]
[400149553,1767155441223,-1431.23584985,0.00014368,2]
[400149555,1767155441232,-750.79014339,0.00014368,2]
[400149557,1767155441241,-1500.0,0.00014368,2]
[400149558,1767155441250,-1500.0,0.00014368,2]
[400149560,1767155441259,-1500.0,0.00014368,2]
[400149562,1767155441268,-1500.0,0.00014368,2]
[400149564,1767155441277,-1079.52271368,0.00014368,2]
[400149566,1767155441286,-424.40432946,0.00014368,2]
[400149568,1767155441295,-1500.0,0.00014368,2]
[400149569,1767155441304,-720.0,0.00014516,2]
[400149570,1767155441313,-725.95698083,0.00014708,2]
[400149571,1767155441323,-151.0,0.00014729,2]
[400149572,1767155441332,-151.0,0.00014729,2]
[400149573,1767155441341,-162.62076672,0.00014729,2]
[400149574,1767155441350,-151.50260762,0.00014729,2]
[400149575,1767155441359,-514.84070869,0.00014729,2]
[400149576,1767155441368,-500.0,0.00014729,2]
[400149577,1767155441377,-500.0,0.00014729,2]
[400149578,1767155441386,-500.0,0.00014729,2]
[400149579,1767155441396,-2487.15318209,0.00014729,2]
[400149580,1767155441406,-500.0,0.00014729,2]
[400149581,1767155441415,-500.0,0.00014729,2]
[400149582,1767155441425,-500.0,0.00014729,2]
[400149583,1767155441434,-250.0,0.00014729,2]
[400149584,1767155441443,-500.0,0.00014729,2]
[400149585,1767155441452,-250.0,0.00014729,2]
[400149586,1767155441461,-500.0,0.00014729,2]
[400149588,1767155441470,-250.0,0.00014729,2]
[400149590,1767155441479,-500.0,0.00014729,2]
[400149591,1767155441488,-250.0,0.00014729,2]
[400149593,1767155441497,-500.0,0.00014729,2]
[400149594,1767155441506,-151.0,0.00014729,2]
[400149595,1767155441515,-250.0,0.00014729,2]
[400149596,1767155441524,-500.0,0.00014729,2]
[400149597,1767155441533,-151.0,0.00014729,2]
[400149598,1767155441543,-250.0,0.00014729,2]
[400149599,1767155441552,-500.0,0.00014729,2]
[400149600,1767155441561,-151.0,0.00014729,2]
[400149601,1767155441570,-250.0,0.00014729,2]
[400149602,1767155441579,-500.0,0.00014729,2]
[400149603,1767155441588,-151.0,0.00014729,2]
[400149604,1767155441597,-250.0,0.00014729,2]
[400149605,1767155441606,-500.0,0.00014729,2]
[400149606,1767155441616,-151.0,0.00014729,2]
[400149607,1767155441630,-250.0,0.00014729,2]
[400149608,1767155441640,-151.0,0.00014729,2]
[400149609,1767155441649,-264.15323111,0.00014729,2]
[400149610,1767155441658,-151.0,0.00014729,2]
[400149611,1767155441667,-151.0,0.00014729,2]
[400149612,1767155441676,-151.0,0.00014729,2]
[400149613,1767155441686,-151.0,0.00014729,2]
[400149614,1767155441695,-151.0,0.00014729,2]
[400149615,1767155441704,-1000.0,0.00014729,2]
[400149616,1767155441713,-151.0,0.00014729,2]
[400149617,1767155441723,-151.0,0.00014729,2]
[400149618,1767155441734,-151.0,0.00014729,2]
[400149619,1767155441743,-257.39953178,0.00014729,2]
[400149620,1767155441753,-2351.0,0.00014764,2]
[400149621,1767155441762,-900.0,0.00014768,2]
[400149622,1767155441771,-1500.0,0.00014795,2]
[400149623,1767155441780,-1004.59975832,0.00014795,2]
[400149624,1767155441789,-1500.0,0.00014795,2]
[400149625,1767155441799,-909.51288327,0.00014795,2]
[400149626,1767155441808,-1500.0,0.00014795,2]
[400149627,1767155441818,-1500.0,0.00014795,2]
[400149628,1767155441827,-288.21762562,0.00014795,2]
[400149629,1767155441836,-1500.0,0.00014795,2]
[400149630,1767155441845,-503.1340869,0.00014795,2]
[400149631,1767155441855,-1500.0,0.00014795,2]
[400149632,1767155441864,-682.49603851,0.00014795,2]
[400149633,1767155441873,-1500.0,0.00014795,2]
[400149634,1767155441885,-1165.86238698,0.00014795,2]
[400149635,1767155441895,-1500.0,0.00014795,2]
[400149636,1767155441904,-1500.0,0.00014795,2]
[400149637,1767155441913,-1500.0,0.00014795,2]
[400149638,1767155441922,-1500.0,0.00014795,2]
[400149639,1767155441931,-1500.0,0.00014795,2]
[400149640,1767155441940,-1157.67215419,0.00014795,2]
[400149641,1767155441950,-1500.0,0.00014795,2]
[400149642,1767155441960,-1500.0,0.00014795,2]
[400149643,1767155441969,-1500.0,0.00014795,2]
[400149644,1767155441978,-1510.33134929,0.00014795,2]
[400149645,1767155441988,-1500.0,0.00014795,2]
[400149646,1767155441997,-1402.01463508,0.00014795,2]
[400149647,1767155442006,-1500.0,0.00014795,2]
[400149648,1767155442015,-1500.0,0.00014795,2]
[400149649,1767155442024,-1133.65989049,0.00014795,2]
[400149650,1767155442033,-1500.0,0.00014795,2]
[400149651,1767155442043,-1500.0,0.00014795,2]
[400149652,1767155442052,-1500.0,0.00014795,2]
[400149653,1767155442061,-1500.0,0.00014795,2]
[400149654,1767155442071,-578.13053233,0.00014795,2]
[400149655,1767155442080,-1500.0,0.00014795,2]
[400149656,1767155442089,-1500.0,0.00014795,2]
[400149657,1767155442098,-1500.0,0.00014795,2]
[400149658,1767155442107,-636.51090941,0.00014795,2]
[400149659,1767155442116,-1016.82099752,0.00014795,2]
[400149660,1767155442126,-1105.24677987,0.00014795,2]
[400149661,1767155442135,-1500.0,0.00014795,2]
[400149662,1767155442144,-1500.0,0.00014795,2]
[400149663,1767155442154,-1500.0,0.00014795,2]
[400149664,1767155442164,-642.5109954,0.00014795,2]
[400149665,1767155442173,-1500.0,0.00014795,2]
[400149666,1767155442183,-1500.0,0.00014795,2]
[400149667,1767155442193,-1500.0,0.00014795,2]